Workbook

Sheet Sheet1
A1: 2024年生产部2月接收处置记录统计表 | Q1: 自产废物
A2: 废物名称 | B2: 危废代码 | C2: 形态 | D2: 上月结存 | E2: 本月接收量 | F2: 处置量及工艺 | J2: 库存量 | K2: 1#库 | L2: 2#库 | M2: 罐区 | N2: 料坑 | Q2: 废物名称 | R2: 上月结存 | S2: 本月产生量 | T2: 包数 | U2: 本月处理 | X2: 库存 | Y2: 备注 | Z2: 存储位置
F3: 固废焚烧 | G3: 废液焚烧 | H3: 清洗大桶 | I3: 罐区 | K3: 1#库 | L3: 2#库 | M3: 罐区 | N3: 料坑 | U3: 焚烧处置 | V3: 液体炉 | W3: 拉运
A4: 釜残杂质 | B4: 271-002-02 | C4: 半固态 | D4: 33.04 | G4: 33.04 | J4: =D4+E4-F4-G4-H4-I4 -> 0 | O4: =K4+L4+M4+N4 -> 0 | Q4: 炉渣（回转窑） | R4: 407.148 | S4: =139.575 -> 139.575 | T4: 112 | W4: 169.451 | X4: =R4+S4-U4-W4-V4 -> 377.272
A5: 废有机溶剂 | B5: 271-002-02 | C5: 液态 | D5: 15.321 | J5: =D5+E5-F5-G5-H5-I5 -> 15.321 | L5: 15.321 | O5: =K5+L5+M5+N5 -> 15.321 | Q5: 飞灰（回转窑） | R5: 14.87 | S5: 23.605 | T5: 63 | W5: 17.715 | X5: 20.76
A6: 废盐 | B6: 271-005-02 | C6: 固态 | D6: 21.76 | E6: 17.24 | F6: 39 | J6: =D6+E6-F6-G6-H6-I6 -> 0 | O6: =K6+L6+M6+N6 -> 0 | Q6: 飞灰（废液炉） | R6: 1.49 | X6: 1.49
A7: 实验室废液 | B7: 900-002-03 | C7: 液态 | D7: 106.9 | E7: 18.523 | F7: =0.023 -> 0.023 | G7: =0.5 -> 0.5 | J7: =D7+E7-F7-G7-H7-I7 -> 124.9 | L7: 124.9 | O7: =K7+L7+M7+N7 -> 124.9 | Q7: 废油渣/泥 | R7: 0 | X7: 0 | Y7: 精馏切水后剩下的罐底泥
A8: 一般废药品 | B8: 900-002-03 | C8: 固态 | D8: 0 | E8: =1 -> 1 | F8: =1 -> 1 | J8: =D8+E8-F8-G8-H8-I8 -> 0 | O8: =K8+L8+M8+N8 -> 0 | Q8: 含油污水 | R8: 0 | S8: 11.6 | U8: 11.6 | X8: 0 | Y8: 蒸汽清洗过程 | Z8: 2#库
A9: 磷化铝、杀虫剂 | B9: 900-003-04 | C9: 固态 | D9: 0.14 | F9: =0.14 -> 0.14 | J9: =D9+E9-F9-G9-H9-I9 -> 0 | O9: =K9+L9+M9+N9 -> 0 | Q9: 废商标 | R9: 0 | S9: 1.85 | U9: 1.85 | X9: 0 | Y9: 除商标 | Z9: 2#库
A10: 蒸馏残液 | B10: 263-008-04 | C10: 半固态 | D10: 3.78 | J10: =D10+E10-F10-G10-H10-I10 -> 3.78 | K10: 3.78 | O10: =K10+L10+M10+N10 -> 3.78 | Q10: 废残液 | R10: 0 | S10: 6.45 | U10: 6.45 | X10: 0 | Y10: 抽残液 | Z10: 2#库
A11: 废有机溶剂 | B11: 900-401-06 | C11: 液态 | D11: 0.86 | J11: =D11+E11-F11-G11-H11-I11 -> 0.86 | L11: 0.86 | O11: =K11+L11+M11+N11 -> 0.86 | Q11: 废渣 | R11: 0 | S11: 6.3 | U11: 6.3 | X11: 0 | Y11: 清洗过程 | Z11: 2#库
A12: 废有机溶剂及废物 | B12: 900-402-06 | C12: 液态 | D12: 123.626 | E12: =0.03 -> 0.03 | F12: =9.568 -> 9.568 | G12: =3.934 -> 3.934 | J12: =D12+E12-F12-G12-H12-I12 -> 110.154 | K12: 12.244 | L12: 97.91 | O12: =K12+L12+M12+N12 -> 110.154 | Q12: 漆渣 | R12: 0 | X12: 0 | Y12: 清洗过程
A13: 废有机溶剂 | B13: 900-404-06 | C13: 液态 | D13: 16.21 | E13: =1 -> 1 | F13: =8 -> 8 | J13: =D13+E13-F13-G13-H13-I13 -> 9.21 | K13: 1 | L13: =8.21+10.46-10.46 -> 8.21 | O13: =K13+L13+M13+N13 -> 9.21 | Q13: 污水厂污泥 | R13: 0 | S13: 1.08 | U13: 1.08 | X13: 0 | Y13: 水处理后产生的污泥 | Z13: 2#库
A14: 废有机溶剂 | B14: 900-407-06 | C14: 液态 | D14: 35.85 | J14: =D14+E14-F14-G14-H14-I14 -> 35.85 | K14: 35.85 | O14: =K14+L14+M14+N14 -> 35.85 | Q14: 废清洗剂 | R14: 0 | X14: 0 | Y14: 清洗剂清洗过程
A15: 油污水 | B15: 251-001-08 | C15: 液态 | D15: 6.5 | J15: =D15+E15-F15-G15-H15-I15 -> 6.5 | L15: 6.5 | O15: =K15+L15+M15+N15 -> 6.5
A16: 废溶剂油 | B16: 291-001-08 | C16: 液态 | D16: 23 | F16: =23 -> 23 | J16: =D16+E16-F16-G16-H16-I16 -> 0 | O16: =K16+L16+M16+N16 -> 0
A17: 废溶剂油 | B17: 291-001-08 | C17: 半固态 | D17: 42.52 | J17: =D17+E17-F17-G17-H17-I17 -> 42.52 | K17: 42.52 | O17: =K17+L17+M17+N17 -> 42.52
A18: 含油泥浆 | B18: 071-002-08 | C18: 液态 | D18: 1543.3 | E18: =61.6 -> 61.6 | J18: =D18+E18-F18-G18-H18-I18 -> 1604.9 | M18: =1981.1+26.4-402.6 -> 1604.9 | O18: =K18+L18+M18+N18 -> 1604.9
A19: 含油岩屑 | B19: 071-002-08 | C19: 半固态 | D19: 956.141 | E19: =81.312 -> 81.312 | I19: =496.38-94.26 -> 402.12 | J19: =D19+E19-F19-G19-H19-I19 -> 635.333 | M19: =427.266 -> 427.266 | N19: =276.037-67.97 -> 208.067 | O19: =K19+L19+M19+N19 -> 635.333
A20: HW08废油 | B20: 900-200-08 | C20: 液态 | D20: 30.98 | F20: 6.54 | J20: =D20+E20-F20-G20-H20-I20 -> 24.44 | M20: 24.44 | O20: =K20+L20+M20+N20 -> 24.44
A21: 油泥 | B21: 900-201-08 | C21: 液态 | D21: 3.226 | J21: =D21+E21-F21-G21-H21-I21 -> 3.226 | M21: 3.226 | O21: =K21+L21+M21+N21 -> 3.226
A22: 水处理浮渣及污泥 | B22: 900-210-08 | C22: 半固态 | D22: 4.1 | J22: =D22+E22-F22-G22-H22-I22 -> 4.1 | L22: 4.1 | O22: =K22+L22+M22+N22 -> 4.1
A23: 废机油、含油废水 | B23: 900-210-08 | C23: 液态 | D23: 184.42 | J23: =D23+E23-F23-G23-H23-I23 -> 184.42 | M23: 184.42 | O23: =K23+L23+M23+N23 -> 184.42
A24: 废水处理过程产废油、油泥、浮渣 | B24: 900-210-08 | C24: 液态 | D24: 512 | E24: 80 | J24: =D24+E24-F24-G24-H24-I24 -> 592 | M24: =784-192 -> 592 | O24: =K24+L24+M24+N24 -> 592
A25: 废机油 | B25: 900-213-08 | C25: 液态 | D25: 1 | J25: =D25+E25-F25-G25-H25-I25 -> 1 | M25: 1 | O25: =K25+L25+M25+N25 -> 1
A26: 废矿物油 | B26: 900-214-08 | C26: 液态 | D26: 40.6089 | E26: =0.92 -> 0.92 | F26: =0.2 -> 0.2 | J26: =D26+E26-F26-G26-H26-I26 -> 41.3289 | M26: 41.3289 | O26: =K26+L26+M26+N26 -> 41.3289
A27: 废矿物油 | B27: 900-217-08 | C27: 液态 | D27: 30.924 | E27: =2.801 -> 2.801 | G27: =11.48 -> 11.48 | J27: =D27+E27-F27-G27-H27-I27 -> 22.245 | M27: 22.245 | O27: =K27+L27+M27+N27 -> 22.245
A28: 废甘油 | B28: 900-217-08 | C28: 半固态 | D28: 0 | J28: =D28+E28-F28-G28-H28-I28 -> 0 | O28: =K28+L28+M28+N28 -> 0
A29: 废液压油 | B29: 900-218-08 | C29: 液态 | D29: 33.0808 | E29: =0.1 -> 0.1 | G29: =3.3 -> 3.3 | J29: =D29+E29-F29-G29-H29-I29 -> 29.8808 | M29: 29.8808 | O29: =K29+L29+M29+N29 -> 29.8808
A30: 废冷冻机油 | B30: 900-219-08 | C30: 液态 | D30: 1.02 | E30: =1.58 -> 1.58 | J30: =D30+E30-F30-G30-H30-I30 -> 2.6 | M30: 2.6 | O30: =K30+L30+M30+N30 -> 2.6
A31: 废矿物油与含矿物油废物 | B31: 900-220-08 | C31: 液态 | D31: 0.7 | E31: =34.14 -> 34.14 | F31: 21.82 | G31: 12.32 | J31: =D31+E31-F31-G31-H31-I31 -> 0.7 | M31: 0.7 | O31: =K31+L31+M31+N31 -> 0.7
A32: 废矿物油 | B32: 900-249-08 | C32: 液态 | D32: 226.7149 | E32: =0.828 -> 0.828 | G32: 4.51 | J32: =D32+E32-F32-G32-H32-I32 -> 223.0329 | M32: =212.4329+10.6 -> 223.0329 | O32: =K32+L32+M32+N32 -> 223.0329
A33: 废矿物油、废油桶 | B33: 900-249-08 | C33: 固态 | D33: 11.062 | E33: 1.0565 | H33: 1.1585 | J33: =D33+E33-F33-G33-H33-I33 -> 10.96 | L33: 10.96 | O33: =K33+L33+M33+N33 -> 10.96
A34: 废矿物油、油泥 | B34: 900-249-08 | C34: 半固态 | D34: 15.14 | J34: =D34+E34-F34-G34-H34-I34 -> 15.14 | K34: 2.32 | L34: 12.82 | O34: =K34+L34+M34+N34 -> 15.14
A35: 废水、乳化液 | B35: 900-007-09 | C35: 液态 | D35: 18.15 | E35: 7 | F35: 7 | J35: =D35+E35-F35-G35-H35-I35 -> 18.15 | L35: 17.75 | M35: 0.4 | O35: =K35+L35+M35+N35 -> 18.15
A36: 废乳化液 | B36: 900-006-09 | C36: 液态 | D36: 44.151 | E36: 41.18 | J36: =D36+E36-F36-G36-H36-I36 -> 85.331 | K36: 21.1 | L36: 64.231 | O36: =K36+L36+M36+N36 -> 85.331
A37: 煤焦油、釜残 | B37: 900-013-11 | C37: 固态 | D37: 18.461 | E37: 9.26 | J37: =D37+E37-F37-G37-H37-I37 -> 27.721 | K37: 14 | L37: 13.721 | O37: =K37+L37+M37+N37 -> 27.721
A38: 煤焦油 | B38: 900-013-11 | C38: 液态 | D38: 53.136 | F38: 26.736 | J38: =D38+E38-F38-G38-H38-I38 -> 26.4 | K38: 21 | L38: 1 | M38: 4.4 | O38: =K38+L38+M38+N38 -> 26.4
A39: 釜残 | B39: 900-013-11 | C39: 半固态 | D39: 57.28 | E39: 39.5 | F39: 21.66 | J39: =D39+E39-F39-G39-H39-I39 -> 75.12 | K39: 74.92 | L39: 0.2 | O39: =K39+L39+M39+N39 -> 75.12
A40: 煤焦油 | B40: 451-003-11 | C40: 液态 | D40: 54.1 | E40: 45.5 | J40: =D40+E40-F40-G40-H40-I40 -> 99.6 | L40: 5.8 | M40: 93.8 | O40: =K40+L40+M40+N40 -> 99.6
A41: 废彩涂液 | B41: 900-252-12 | C41: 液态 | D41: 0 | E41: 21.92 | J41: =D41+E41-F41-G41-H41-I41 -> 21.92 | K41: 21.92 | O41: =K41+L41+M41+N41 -> 21.92
A42: 废漆渣 | B42: 900-252-12 | C42: 固态 | D42: 68.779 | E42: 13.74 | F42: 41.599 | H42: 1.4 | J42: =D42+E42-F42-G42-H42-I42 -> 39.52 | K42: 23.34 | L42: 16.18 | O42: =K42+L42+M42+N42 -> 39.52
A43: 漆渣 | B43: 900-252-12 | C43: 半固态 | D43: 0 | E43: 1.03 | F43: 1.03 | J43: =D43+E43-F43-G43-H43-I43 -> 0 | O43: =K43+L43+M43+N43 -> 0
A44: 油墨渣子、油漆 | B44: 900-299-12 | C44: 半固态 | D44: 3.06 | E44: 0.194 | F44: 3.254 | J44: =D44+E44-F44-G44-H44-I44 -> 0 | O44: =K44+L44+M44+N44 -> 0
A45: 硒鼓墨盒 | B45: 900-299-12 | C45: 固态 | D45: 4 | F45: 4 | J45: =D45+E45-F45-G45-H45-I45 -> 0 | O45: =K45+L45+M45+N45 -> 0
A46: 油漆渣 | B46: 900-299-12 | C46: 液态 | D46: 2.32 | E46: 0.8 | J46: =D46+E46-F46-G46-H46-I46 -> 3.12 | K46: 3.12 | O46: =K46+L46+M46+N46 -> 3.12
A47: 发泡废料，废胶水 | B47: 900-014-13 | C47: 半固态 | D47: 0.166 | J47: =D47+E47-F47-G47-H47-I47 -> 0.166 | K47: 0.166 | O47: =K47+L47+M47+N47 -> 0.166
A48: 发泡废料，废胶水 | B48: 900-014-13 | C48: 固态 | D48: 3.36 | E48: 0.46 | F48: 3.36 | J48: =D48+E48-F48-G48-H48-I48 -> 0.46 | K48: 0.46 | O48: =K48+L48+M48+N48 -> 0.46
A49: 废树脂 | B49: 900-015-13 | C49: 固态 | D49: 0 | E49: 2.25 | J49: =D49+E49-F49-G49-H49-I49 -> 2.25 | K49: 2.25 | O49: =K49+L49+M49+N49 -> 2.25
A50: 有机树脂废物 | B50: 900-016-13 | C50: 半固态 | D50: 3.57 | J50: =D50+E50-F50-G50-H50-I50 -> 3.57 | L50: 3.57 | O50: =K50+L50+M50+N50 -> 3.57
A51: 不合格有机树脂 | B51: 265-101-13 | C51: 半固态 | D51: 2.6 | F51: 2.6 | J51: =D51+E51-F51-G51-H51-I51 -> 0 | O51: =K51+L51+M51+N51 -> 0
A52: 含盐废水 | B52: 265-103-13 | C52: 液态 | D52: 9.42 | J52: =D52+E52-F52-G52-H52-I52 -> 9.42 | K52: 9.42 | O52: =K52+L52+M52+N52 -> 9.42
A53: 釜残与滤渣 | B53: 265-103-13 | C53: 半固态 | D53: 4.6 | F53: 4.6 | J53: =D53+E53-F53-G53-H53-I53 -> 0 | O53: =K53+L53+M53+N53 -> 0
A54: 产品水解物、氯化镁盐 | B54: 265-103-13 | C54: 固态 | D54: 3 | F54: 3 | J54: =D54+E54-F54-G54-H54-I54 -> 0 | O54: =K54+L54+M54+N54 -> 0
A55: 镀铜溶液 | B55: 336-062-17 | C55: 液态 | D55: 13.065 | J55: =D55+E55-F55-G55-H55-I55 -> 13.065 | L55: 1.545 | M55: 11.52 | O55: =K55+L55+M55+N55 -> 13.065
A56: 废槽渣 | B56: 336-064-17 | C56: 固态 | D56: 44.48 | E56: 12.35 | F56: 44.48 | J56: =D56+E56-F56-G56-H56-I56 -> 12.35 | K56: 12.35 | O56: =K56+L56+M56+N56 -> 12.35
A57: 金属表面处理污泥 | B57: 336-064-17 | C57: 半固态 | D57: 6.41 | F57: 4.87 | J57: =D57+E57-F57-G57-H57-I57 -> 1.54 | K57: 1.54 | O57: =K57+L57+M57+N57 -> 1.54
A58: 金属表面处理污泥 | B58: 336-064-17 | C58: 液态 | D58: 4.81 | J58: =D58+E58-F58-G58-H58-I58 -> 4.81 | K58: 0.33 | L58: 4.48 | O58: =K58+L58+M58+N58 -> 4.81
A59: 污泥 | B59: 336-069-17 | C59: 半固态 | D59: 0.21 | J59: =D59+E59-F59-G59-H59-I59 -> 0.21 | L59: 0.21 | O59: =K59+L59+M59+N59 -> 0.21
A60: 污泥 | B60: 336-069-17 | C60: 固态 | D60: 16.82 | E60: 14.06 | F60: 30.88 | J60: =D60+E60-F60-G60-H60-I60 -> 0 | O60: =K60+L60+M60+N60 -> 0
A61: 废硫氢化钠残渣 | B61: 900-399-35 | C61: 半固态 | D61: 10 | J61: =D61+E61-F61-G61-H61-I61 -> 10 | L61: 10 | O61: =K61+L61+M61+N61 -> 10
A62: 废碱液 | B62: 900-352-35 | C62: 液态 | D62: 88.74 | J62: 88.74 | K62: 48.08 | L62: 40.66 | O62: 88.74
A63: 废碱液 | B63: 900-354-35 | C63: 液态 | D63: 0.9 | J63: 0.9 | L63: 0.9 | O63: 0.9
A64: 含酚废水 | B64: 261-070-39 | C64: 液态 | D64: 83.38 | E64: 36.82 | J64: 120.2 | M64: 120.2 | O64: 120.2
A65: 污泥 | B65: 261-084-45 | C65: 固态 | D65: 3.44 | J65: 3.44 | K65: 3.44 | O65: 3.44
A66: 含油废物 | B66: 900-041-49 | C66: 固态 | D66: 1898.836 | E66: 531.806 | F66: =1120.791-274 -> 846.791 | H66: 41.252 | J66: 1542.599 | K66: =1101.1-75-50-130 -> 846.1 | L66: 566.499 | N66: 130 | O66: 1542.599
A67: 防腐剂 | B67: 900-041-49 | C67: 液态 | D67: 0.0247 | J67: 0.0247 | L67: 0.0247 | O67: 0.0247
A68: 废酸碱袋 | B68: 900-042-49 | C68: 固态 | D68: 0.164 | E68: 0.395 | F68: 0.559 | J68: 0 | O68: 0
A69: 废活性炭 | B69: 900-039-49 | C69: 固态 | D69: 8.234 | E69: 11.985 | F69: 16.459 | J69: =D69+E69-F69-G69-H69-I69 -> 3.76 | L69: 3.76 | O69: =K69+L69+M69+N69 -> 3.76
A70: 过期化学药品 | B70: 900-047-49 | C70: 固态 | D70: 0 | E70: 4.22 | F70: 0.183 | J70: =D70+E70-F70-G70-H70-I70 -> 4.037 | L70: 4.037 | O70: =K70+L70+M70+N70 -> 4.037
A71: 乙腈、异丙酮、废液 | B71: 900-047-49 | C71: 液态 | D71: 28.853 | E71: 31.887 | F71: 5.125 | G71: 12.942 | J71: =D71+E71-F71-G71-H71-I71 -> 42.673 | K71: 1.5 | L71: 41.173 | O71: =K71+L71+M71+N71 -> 42.673
A72: 过期面膜原料、残液 | B72: 900-999-49 | C72: 液态 | D72: 16.176 | J72: =D72+E72-F72-G72-H72-I72 -> 16.176 | K72: 1.996 | L72: 14.18 | O72: =K72+L72+M72+N72 -> 16.176
A73: 小计： | D73: 6598.6203 | E73: =SUM(E4:E72) -> 1128.4875 | F73: =SUM(F4:F72) -> 1177.477 | G73: =SUM(G4:G72) -> 82.026 | H73: =SUM(H4:H72) -> 43.8105 | I73: =SUM(I4:I72) -> 402.12 | J73: =D73+E73-F73-G73-H73-I73 -> 6021.6743 | K73: =SUM(K4:K72) -> 1204.746 | L73: =SUM(L4:L72) -> 1091.5017 | M73: =SUM(M4:M72) -> 3387.3596 | N73: =SUM(N4:N72) -> 338.067 | O73: =SUM(K73:N73) -> 6021.6743
A74: 合计： | F74: =F73+G73+H73+I73 -> 1705.4335
